[Event "Rapid Tournament (RAP)"]
[Site "Biel, Switzerland"]
[Date "2026.07.12"]
[Round "7.15"]
[White "Manko, Mariia"]
[Black "Hornung, Hans"]
[Result "1-0"]
[TimeControl "15 + 5"]
[WhiteTitle "-"]
[BlackTitle "-"]
[WhiteFideId "14199220"]
[BlackFideId "4615140"]
[WhiteElo "2210"]
[BlackElo "2040"]

1. d4 {[%clk 00:15:08]} {[%emt 00:00:04]} Nf6 {[%clk 00:14:56]} {[%emt
00:00:02]} 2. c4 {[%clk 00:15:11]} {[%emt 00:00:13]} Nc6 {[%clk 00:14:54]}
{[%emt 00:00:06]} 3. Nf3 {[%clk 00:14:39]} {[%emt 00:00:38]} e6 {[%clk
00:14:57]} {[%emt 00:00:02]} 4. g3 {[%clk 00:14:27]} {[%emt 00:00:17]} Bb4+
{[%clk 00:14:49]} {[%emt 00:00:12]} 5. Bd2 {[%clk 00:14:25]} {[%emt 00:00:07]}
a5 {[%clk 00:13:52]} {[%emt 00:01:03]} 6. Bg2 {[%clk 00:14:16]} {[%emt
00:00:14]} O-O {[%clk 00:13:37]} {[%emt 00:00:20]} 7. O-O {[%clk 00:14:06]}
{[%emt 00:00:15]} Bxd2 {[%clk 00:13:22]} {[%emt 00:00:20]} 8. Qxd2 {[%clk
00:14:02]} {[%emt 00:00:08]} d6 {[%clk 00:13:22]} {[%emt 00:00:06]} 9. Nc3
{[%clk 00:12:58]} {[%emt 00:01:09]} e5 {[%clk 00:13:04]} {[%emt 00:00:23]} 10.
d5 {[%clk 00:12:20]} {[%emt 00:00:44]} Nb4 {[%clk 00:12:29]} {[%emt 00:00:39]}
11. a3 {[%clk 00:10:47]} {[%emt 00:01:38]} Na6 {[%clk 00:12:26]} {[%emt
00:00:07]} 12. b4 {[%clk 00:10:47]} {[%emt 00:00:05]} axb4 {[%clk 00:11:35]}
{[%emt 00:00:56]} 13. axb4 {[%clk 00:10:49]} {[%emt 00:00:04]} Bg4 {[%clk
00:11:16]} {[%emt 00:00:23]} 14. Rfb1 {[%clk 00:08:28]} {[%emt 00:02:27]} Qd7
{[%clk 00:11:01]} {[%emt 00:00:20]} 15. e4 {[%clk 00:08:08]} {[%emt 00:00:25]}
h6 {[%clk 00:09:06]} {[%emt 00:01:59]} 16. Qe3 {[%clk 00:07:35]} {[%emt
00:00:39]} Nh7 {[%clk 00:08:36]} {[%emt 00:00:35]} 17. c5 {[%clk 00:06:55]}
{[%emt 00:00:45]} f5 {[%clk 00:07:35]} {[%emt 00:01:05]} 18. c6 {[%clk
00:05:46]} {[%emt 00:01:15]} bxc6 {[%clk 00:07:12]} {[%emt 00:00:27]} 19. dxc6
{[%clk 00:05:47]} {[%emt 00:00:04]} Qf7 {[%clk 00:06:49]} {[%emt 00:00:29]} 20.
exf5 {[%clk 00:04:19]} {[%emt 00:01:33]} Bxf5 {[%clk 00:06:01]} {[%emt
00:00:52]} 21. Nh4 {[%clk 00:03:45]} {[%emt 00:00:38]} Bxb1 {[%clk 00:05:32]}
{[%emt 00:00:34]} 22. Bd5 {[%clk 00:03:43]} {[%emt 00:00:07]} Bc2 {[%clk
00:03:04]} {[%emt 00:02:33]} 23. Bxf7+ {[%clk 00:03:44]} {[%emt 00:00:05]} Kxf7
{[%clk 00:03:01]} {[%emt 00:00:08]} 24. Qe2 {[%clk 00:03:06]} {[%emt 00:00:42]}
Bb3 {[%clk 00:02:55]} {[%emt 00:00:12]} 25. Rxa6 {[%clk 00:03:02]} {[%emt
00:00:09]} 1-0

[Event "Rapid Tournament (RAP)"]
[Site "Biel, Switzerland"]
[Date "2026.07.12"]
[Round "7.16"]
[White "De Gregorio, Alexis"]
[Black "Frey, Fabian"]
[Result "0-1"]
[TimeControl "15 + 5"]
[WhiteTitle "-"]
[BlackTitle "-"]
[WhiteFideId "1310054"]
[BlackFideId "1336487"]
[WhiteElo "2030"]
[BlackElo "2207"]

1. d4 {[%clk 00:15:06]} {[%emt 00:00:02]} d5 {[%clk 00:15:09]} {[%emt
00:00:02]} 2. c4 {[%clk 00:15:10]} {[%emt 00:00:04]} e6 {[%clk 00:15:13]} 3.
Nc3 {[%clk 00:15:12]} {[%emt 00:00:02]} c5 {[%clk 00:15:12]} {[%emt 00:00:06]}
4. cxd5 {[%clk 00:15:02]} {[%emt 00:00:15]} exd5 {[%clk 00:15:15]} {[%emt
00:00:02]} 5. Nf3 {[%clk 00:15:02]} {[%emt 00:00:05]} Nc6 {[%clk 00:15:06]}
{[%emt 00:00:14]} 6. Bf4 {[%clk 00:14:50]} {[%emt 00:00:17]} Nf6 {[%clk
00:15:00]} {[%emt 00:00:10]} 7. e3 {[%clk 00:14:39]} {[%emt 00:00:16]} c4
{[%clk 00:14:47]} {[%emt 00:00:19]} 8. Be2 {[%clk 00:13:47]} {[%emt 00:00:57]}
Bb4 {[%clk 00:14:45]} {[%emt 00:00:07]} 9. Qc2 {[%clk 00:13:27]} {[%emt
00:00:24]} Ne4 {[%clk 00:14:30]} {[%emt 00:00:20]} 10. O-O {[%clk 00:13:23]}
{[%emt 00:00:10]} Bf5 {[%clk 00:14:13]} {[%emt 00:00:21]} 11. Qc1 {[%clk
00:11:47]} {[%emt 00:01:42]} O-O {[%clk 00:13:37]} {[%emt 00:00:41]} 12. Nxe4
{[%clk 00:11:04]} {[%emt 00:00:48]} Bxe4 {[%clk 00:13:35]} {[%emt 00:00:07]} 13.
Ne5 {[%clk 00:09:48]} {[%emt 00:01:21]} Rc8 {[%clk 00:13:14]} {[%emt 00:00:27]}
14. Bg4 {[%clk 00:09:16]} {[%emt 00:00:36]} Nxe5 {[%clk 00:13:05]} {[%emt
00:00:13]} 15. Bxe5 {[%clk 00:08:50]} {[%emt 00:00:32]} Rc6 {[%clk 00:13:06]}
{[%emt 00:00:03]} 16. Qd1 {[%clk 00:08:04]} {[%emt 00:00:52]} a6 {[%clk
00:12:50]} {[%emt 00:00:20]} 17. Bf3 {[%clk 00:07:46]} {[%emt 00:00:24]} Bd3
{[%clk 00:12:19]} {[%emt 00:00:36]} 18. Be2 {[%clk 00:07:48]} {[%emt 00:00:02]}
Bf5 {[%clk 00:12:13]} {[%emt 00:00:10]} 19. a3 {[%clk 00:06:39]} {[%emt
00:01:16]} Bd6 {[%clk 00:11:45]} {[%emt 00:00:33]} 20. Bf3 {[%clk 00:06:11]}
{[%emt 00:00:32]} Be7 {[%clk 00:11:18]} {[%emt 00:00:32]} 21. Qd2 {[%clk
00:05:45]} {[%emt 00:00:32]} Qd7 {[%clk 00:10:51]} {[%emt 00:00:32]} 22. Rfc1
{[%clk 00:05:28]} {[%emt 00:00:21]} Rfc8 {[%clk 00:10:53]} {[%emt 00:00:03]} 23.
Qa5 {[%clk 00:05:01]} {[%emt 00:00:33]} b5 {[%clk 00:10:47]} {[%emt 00:00:11]}
24. a4 {[%clk 00:04:42]} {[%emt 00:00:25]} Bd8 {[%clk 00:09:32]} {[%emt
00:01:19]} 25. Qb4 {[%clk 00:04:44]} {[%emt 00:00:03]} bxa4 {[%clk 00:08:30]}
{[%emt 00:01:06]} 26. Qxa4 {[%clk 00:04:08]} {[%emt 00:00:42]} Be4 {[%clk
00:05:37]} {[%emt 00:02:58]} 27. Bxe4 {[%clk 00:02:58]} {[%emt 00:01:15]} dxe4
{[%clk 00:05:41]} 28. h3 {[%clk 00:02:53]} {[%emt 00:00:10]} Qd5 {[%clk
00:05:39]} {[%emt 00:00:07]} 29. Qc2 {[%clk 00:01:42]} {[%emt 00:01:16]} h6
{[%clk 00:05:22]} {[%emt 00:00:21]} 30. Ra2 {[%clk 00:01:41]} {[%emt 00:00:07]}
c3 {[%clk 00:04:48]} {[%emt 00:00:39]} 31. b3 {[%clk 00:01:44]} Bf6 {[%clk
00:04:39]} {[%emt 00:00:14]} 32. Bxf6 {[%clk 00:01:46]} {[%emt 00:00:04]} Rxf6
{[%clk 00:04:43]} {[%emt 00:00:01]} 33. Rca1 {[%clk 00:01:49]} {[%emt
00:00:02]} Qb7 {[%clk 00:04:02]} {[%emt 00:00:46]} 34. Ra4 {[%clk 00:01:45]}
{[%emt 00:00:09]} Rb6 {[%clk 00:03:59]} {[%emt 00:00:07]} 35. Rb1 {[%clk
00:01:35]} {[%emt 00:00:15]} Qd5 {[%clk 00:03:54]} {[%emt 00:00:10]} 36. b4
{[%clk 00:01:35]} {[%emt 00:00:06]} Qb5 {[%clk 00:03:36]} {[%emt 00:00:22]} 37.
Rd1 {[%clk 00:01:30]} {[%emt 00:00:11]} Rc4 {[%clk 00:03:05]} {[%emt 00:00:36]}
38. d5 {[%clk 00:01:30]} {[%emt 00:00:05]} Rxb4 {[%clk 00:03:00]} {[%emt
00:00:09]} 39. Rxb4 {[%clk 00:01:33]} {[%emt 00:00:02]} Qxb4 {[%clk 00:03:04]}
{[%emt 00:00:01]} 40. d6 {[%clk 00:01:14]} {[%emt 00:00:25]} Rxd6 {[%clk
00:02:49]} {[%emt 00:00:20]} 41. Rxd6 {[%clk 00:01:17]} {[%emt 00:00:01]} Qxd6
{[%clk 00:02:53]} {[%emt 00:00:02]} 42. Qxc3 {[%clk 00:01:20]} {[%emt
00:00:02]} Qe6 {[%clk 00:02:56]} {[%emt 00:00:02]} 43. Qd4 {[%clk 00:01:04]}
{[%emt 00:00:21]} Kh7 {[%clk 00:02:45]} {[%emt 00:00:15]} 44. Kf1 {[%clk
00:00:45]} {[%emt 00:00:25]} Qc6 {[%clk 00:02:40]} {[%emt 00:00:06]} 45. Ke2
{[%clk 00:00:29]} {[%emt 00:00:24]} a5 {[%clk 00:02:39]} {[%emt 00:00:06]} 46.
Kd2 {[%clk 00:00:13]} {[%emt 00:00:21]} a4 {[%clk 00:02:41]} {[%emt 00:00:04]}
47. Qb4 {[%clk 00:00:14]} {[%emt 00:00:04]} Qd5+ {[%clk 00:02:42]} {[%emt
00:00:04]} 48. Ke2 {[%clk 00:00:14]} {[%emt 00:00:05]} Qd3+ {[%clk 00:02:41]}
{[%emt 00:00:06]} 49. Ke1 {[%clk 00:00:17]} {[%emt 00:00:02]} a3 {[%clk
00:02:40]} {[%emt 00:00:06]} 50. Qa4 {[%clk 00:00:19]} {[%emt 00:00:03]} Qb1+
{[%clk 00:02:28]} {[%emt 00:00:16]} 0-1

[Event "Rapid Tournament (RAP)"]
[Site "Biel, Switzerland"]
[Date "2026.07.12"]
[Round "7.17"]
[White "Rohrer, Christophe"]
[Black "Wilhelm, Serge"]
[Result "1-0"]
[TimeControl "15 + 5"]
[WhiteTitle "-"]
[BlackTitle "-"]
[WhiteFideId "1326546"]
[BlackFideId "1305808"]
[WhiteElo "2202"]
[BlackElo "1923"]

1. e4 {[%clk 00:15:08]} {[%emt 00:00:02]} c6 {[%clk 00:15:09]} {[%emt
00:00:03]} 2. d4 {[%clk 00:15:11]} d5 {[%clk 00:15:13]} {[%emt 00:00:01]} 3. e5
{[%clk 00:15:14]} {[%emt 00:00:02]} Bf5 {[%clk 00:15:16]} {[%emt 00:00:02]} 4.
Nf3 {[%clk 00:15:17]} {[%emt 00:00:03]} e6 {[%clk 00:15:17]} {[%emt 00:00:04]}
5. Be2 {[%clk 00:15:20]} {[%emt 00:00:04]} Nd7 {[%clk 00:15:08]} {[%emt
00:00:12]} 6. O-O {[%clk 00:15:16]} {[%emt 00:00:09]} Ne7 {[%clk 00:15:11]}
{[%emt 00:00:03]} 7. Nbd2 {[%clk 00:15:19]} {[%emt 00:00:02]} h6 {[%clk
00:15:12]} {[%emt 00:00:04]} 8. Nb3 {[%clk 00:15:16]} {[%emt 00:00:08]} g5
{[%clk 00:15:06]} {[%emt 00:00:10]} 9. a4 {[%clk 00:15:13]} {[%emt 00:00:08]}
Bg7 {[%clk 00:14:28]} {[%emt 00:00:44]} 10. a5 {[%clk 00:15:07]} {[%emt
00:00:12]} a6 {[%clk 00:14:28]} {[%emt 00:00:06]} 11. Bd2 {[%clk 00:15:01]}
{[%emt 00:00:10]} O-O {[%clk 00:13:03]} {[%emt 00:01:30]} 12. Bb4 {[%clk
00:14:27]} {[%emt 00:00:39]} f6 {[%clk 00:12:15]} {[%emt 00:00:53]} 13. exf6
{[%clk 00:14:02]} {[%emt 00:00:31]} Bxf6 {[%clk 00:11:59]} {[%emt 00:00:19]} 14.
Nc5 {[%clk 00:13:32]} {[%emt 00:00:35]} Nxc5 {[%clk 00:11:08]} {[%emt
00:00:56]} 15. Bxc5 {[%clk 00:13:35]} {[%emt 00:00:03]} Re8 {[%clk 00:10:40]}
{[%emt 00:00:32]} 16. Re1 {[%clk 00:13:18]} {[%emt 00:00:22]} Ng6 {[%clk
00:10:11]} {[%emt 00:00:34]} 17. g3 {[%clk 00:11:29]} {[%emt 00:01:54]} e5
{[%clk 00:08:55]} {[%emt 00:01:22]} 18. dxe5 {[%clk 00:11:15]} {[%emt
00:00:19]} Nxe5 {[%clk 00:08:57]} {[%emt 00:00:02]} 19. Nd4 {[%clk 00:09:47]}
{[%emt 00:01:33]} Bg6 {[%clk 00:08:00]} {[%emt 00:01:02]} 20. Bh5 {[%clk
00:09:15]} {[%emt 00:00:38]} Qd7 {[%clk 00:07:32]} {[%emt 00:00:33]} 21. Bxg6
{[%clk 00:09:00]} {[%emt 00:00:20]} Nxg6 {[%clk 00:07:34]} {[%emt 00:00:02]} 22.
Qh5 {[%clk 00:08:48]} {[%emt 00:00:17]} Kg7 {[%clk 00:07:16]} {[%emt 00:00:24]}
23. f4 {[%clk 00:05:30]} {[%emt 00:03:23]} Re4 {[%clk 00:04:46]} {[%emt
00:02:34]} 24. Rxe4 {[%clk 00:04:29]} {[%emt 00:01:07]} dxe4 {[%clk 00:04:49]}
{[%emt 00:00:01]} 25. c3 {[%clk 00:04:23]} {[%emt 00:00:12]} Re8 {[%clk
00:04:33]} {[%emt 00:00:21]} 26. Rf1 {[%clk 00:03:58]} {[%emt 00:00:31]} e3
{[%clk 00:02:48]} {[%emt 00:01:50]} 27. f5 {[%clk 00:02:30]} {[%emt 00:01:32]}
Ne5 {[%clk 00:02:48]} {[%emt 00:00:05]} 28. Ne6+ {[%clk 00:02:31]} {[%emt
00:00:04]} Kh7 {[%clk 00:02:39]} {[%emt 00:00:14]} 29. Nf8+ {[%clk 00:01:46]}
{[%emt 00:00:50]} Rxf8 {[%clk 00:02:30]} {[%emt 00:00:13]} 30. Bxf8 {[%clk
00:01:50]} {[%emt 00:00:02]} Bg7 {[%clk 00:02:15]} {[%emt 00:00:20]} 31. Bxg7
{[%clk 00:01:52]} {[%emt 00:00:04]} Qxg7 {[%clk 00:02:13]} {[%emt 00:00:06]} 32.
Qe2 {[%clk 00:01:48]} {[%emt 00:00:08]} g4 {[%clk 00:02:03]} {[%emt 00:00:15]}
33. Qxe3 {[%clk 00:01:45]} {[%emt 00:00:08]} Nf3+ {[%clk 00:02:07]} {[%emt
00:00:02]} 34. Kg2 {[%clk 00:01:42]} {[%emt 00:00:08]} Qf7 {[%clk 00:02:06]}
{[%emt 00:00:06]} 35. Qe6 {[%clk 00:01:26]} {[%emt 00:00:21]} Qh5 {[%clk
00:01:54]} {[%emt 00:00:17]} 36. Qg6+ {[%clk 00:01:29]} {[%emt 00:00:02]} Qxg6
{[%clk 00:01:57]} {[%emt 00:00:01]} 37. fxg6+ {[%clk 00:01:33]} Kxg6 {[%clk
00:02:01]} {[%emt 00:00:01]} 38. Rd1 {[%clk 00:01:29]} {[%emt 00:00:10]} Ne5
{[%clk 00:01:53]} {[%emt 00:00:12]} 39. Rd8 {[%clk 00:01:28]} {[%emt 00:00:06]}
Nc4 {[%clk 00:01:47]} {[%emt 00:00:12]} 40. b4 {[%clk 00:01:32]} {[%emt
00:00:01]} Ne5 {[%clk 00:01:34]} {[%emt 00:00:18]} 41. Rb8 {[%clk 00:01:33]}
{[%emt 00:00:04]} 1-0

[Event "Rapid Tournament (RAP)"]
[Site "Biel, Switzerland"]
[Date "2026.07.12"]
[Round "7.18"]
[White "Laub, Patrick"]
[Black "Fernandes Barbosa Dos Santos, Gabriel"]
[Result "0-1"]
[TimeControl "15 + 5"]
[WhiteTitle "-"]
[BlackTitle "-"]
[WhiteFideId "1302566"]
[BlackFideId "1354388"]
[WhiteElo "1949"]
[BlackElo "2199"]

1. e4 {[%clk 00:15:01]} {[%emt 00:00:11]} c5 {[%clk 00:15:08]} 2. Nc3 {[%clk
00:15:03]} {[%emt 00:00:02]} Nc6 {[%clk 00:15:11]} {[%emt 00:00:02]} 3. Bb5
{[%clk 00:15:03]} {[%emt 00:00:05]} Nd4 {[%clk 00:15:13]} {[%emt 00:00:03]} 4.
Nf3 {[%clk 00:15:03]} {[%emt 00:00:05]} g6 {[%clk 00:15:16]} {[%emt 00:00:03]}
5. O-O {[%clk 00:14:23]} {[%emt 00:00:44]} Bg7 {[%clk 00:15:17]} {[%emt
00:00:04]} 6. Nxd4 {[%clk 00:13:28]} {[%emt 00:01:01]} cxd4 {[%clk 00:15:19]}
{[%emt 00:00:04]} 7. Ne2 {[%clk 00:13:26]} {[%emt 00:00:06]} e6 {[%clk
00:15:02]} {[%emt 00:00:22]} 8. d3 {[%clk 00:13:22]} {[%emt 00:00:10]} a6
{[%clk 00:15:02]} {[%emt 00:00:05]} 9. Ba4 {[%clk 00:13:24]} {[%emt 00:00:02]}
b5 {[%clk 00:15:04]} {[%emt 00:00:03]} 10. Bb3 {[%clk 00:13:28]} {[%emt
00:00:02]} Ne7 {[%clk 00:15:02]} {[%emt 00:00:06]} 11. a4 {[%clk 00:12:33]}
{[%emt 00:01:00]} b4 {[%clk 00:14:53]} {[%emt 00:00:14]} 12. Bd2 {[%clk
00:11:36]} {[%emt 00:01:02]} Rb8 {[%clk 00:14:17]} {[%emt 00:00:41]} 13. Qe1
{[%clk 00:11:24]} {[%emt 00:00:17]} a5 {[%clk 00:14:13]} {[%emt 00:00:08]} 14.
f4 {[%clk 00:11:27]} {[%emt 00:00:02]} d6 {[%clk 00:14:00]} {[%emt 00:00:18]}
15. Ng3 {[%clk 00:10:39]} {[%emt 00:00:53]} O-O {[%clk 00:13:30]} {[%emt
00:00:35]} 16. Rf2 {[%clk 00:08:36]} {[%emt 00:02:09]} Kh8 {[%clk 00:13:05]}
{[%emt 00:00:30]} 17. Qe2 {[%clk 00:08:26]} {[%emt 00:00:14]} Bd7 {[%clk
00:12:52]} {[%emt 00:00:18]} 18. Raf1 {[%clk 00:07:29]} {[%emt 00:01:03]} f5
{[%clk 00:12:41]} {[%emt 00:00:15]} 19. exf5 {[%clk 00:07:17]} {[%emt
00:00:17]} exf5 {[%clk 00:12:44]} {[%emt 00:00:02]} 20. h4 {[%clk 00:06:11]}
{[%emt 00:01:11]} Bf6 {[%clk 00:12:18]} {[%emt 00:00:32]} 21. h5 {[%clk
00:06:07]} {[%emt 00:00:09]} Kg7 {[%clk 00:12:01]} {[%emt 00:00:22]} 22. Nh1
{[%clk 00:03:45]} {[%emt 00:02:27]} Re8 {[%clk 00:11:32]} {[%emt 00:00:33]} 23.
Qf3 {[%clk 00:03:05]} {[%emt 00:00:45]} Bc6 {[%clk 00:11:32]} {[%emt 00:00:05]}
24. Qh3 {[%clk 00:02:52]} {[%emt 00:00:17]} Nd5 {[%clk 00:11:07]} {[%emt
00:00:31]} 25. Bxd5 {[%clk 00:02:54]} {[%emt 00:00:04]} Bxd5 {[%clk 00:11:10]}
{[%emt 00:00:02]} 26. b3 {[%clk 00:02:22]} {[%emt 00:00:36]} Rc8 {[%clk
00:11:12]} {[%emt 00:00:03]} 27. Bc1 {[%clk 00:02:27]} {[%emt 00:00:01]} Qd7
{[%clk 00:11:00]} {[%emt 00:00:17]} 28. Ng3 {[%clk 00:02:09]} {[%emt 00:00:22]}
Re7 {[%clk 00:10:54]} {[%emt 00:00:12]} 29. Kh2 {[%clk 00:02:00]} {[%emt
00:00:13]} Rce8 {[%clk 00:10:32]} {[%emt 00:00:28]} 30. Rh1 {[%emt 00:00:15]}
Re1 {[%clk 00:10:31]} 31. Rff1 {[%clk 00:01:56]} {[%emt 00:00:04]} Rxf1 {[%clk
00:10:32]} {[%emt 00:00:04]} 32. Rxf1 {[%clk 00:01:41]} {[%emt 00:00:20]} Qc8
{[%clk 00:10:14]} {[%emt 00:00:23]} 33. Rf2 {[%clk 00:01:04]} {[%emt 00:00:41]}
Bxb3 {[%clk 00:09:15]} {[%emt 00:01:04]} 34. h6+ {[%clk 00:00:19]} {[%emt
00:00:50]} Kh8 {[%clk 00:08:48]} {[%emt 00:00:33]} 35. Bb2 {[%clk 00:00:12]}
{[%emt 00:00:12]} Bxc2 {[%clk 00:08:27]} {[%emt 00:00:25]} 36. Ne2 {[%clk
00:00:16]} {[%emt 00:00:02]} Re3 {[%clk 00:08:16]} {[%emt 00:00:15]} 37. g3
{[%clk 00:00:10]} {[%emt 00:00:11]} Qc5 {[%clk 00:08:10]} {[%emt 00:00:11]} 38.
Qg2 {[%clk 00:00:09]} {[%emt 00:00:06]} Bxa4 {[%clk 00:07:38]} {[%emt
00:00:37]} 39. Qa8+ {[%clk 00:00:00]} {[%emt 00:00:10]} Re8 {[%clk 00:07:38]}
{[%emt 00:00:01]} 40. Qb7 {[%clk 00:00:00]} {[%emt 00:00:02]} Bc6 {[%emt
00:00:20]} 0-1

[Event "Rapid Tournament (RAP)"]
[Site "Biel, Switzerland"]
[Date "2026.07.12"]
[Round "7.19"]
[White "Habibi, Ali"]
[Black "Gheorghiu, Harry"]
[Result "1-0"]
[TimeControl "15 + 5"]
[WhiteTitle "-"]
[BlackTitle "-"]
[WhiteFideId "4604393"]
[BlackFideId "1248839"]
[WhiteElo "2187"]
[BlackElo "1751"]

1. Nf3 {[%clk 00:14:16]} {[%emt 00:00:53]} b6 {[%clk 00:15:05]} {[%emt
00:00:06]} 2. g3 {[%clk 00:14:19]} {[%emt 00:00:03]} Bb7 {[%clk 00:15:09]} 3.
Bg2 {[%clk 00:14:23]} g6 {[%clk 00:15:07]} {[%emt 00:00:07]} 4. O-O {[%clk
00:14:25]} {[%emt 00:00:02]} Bg7 {[%clk 00:15:11]} {[%emt 00:00:01]} 5. c4
{[%clk 00:14:27]} {[%emt 00:00:03]} Nf6 {[%clk 00:15:05]} {[%emt 00:00:12]} 6.
Nc3 {[%clk 00:14:31]} {[%emt 00:00:01]} O-O {[%clk 00:15:08]} {[%emt 00:00:02]}
7. d4 {[%clk 00:14:30]} {[%emt 00:00:06]} e6 {[%clk 00:14:43]} {[%emt
00:00:30]} 8. Qc2 {[%clk 00:14:32]} {[%emt 00:00:03]} Na6 {[%clk 00:13:55]}
{[%emt 00:00:53]} 9. a3 {[%clk 00:14:34]} {[%emt 00:00:02]} c5 {[%clk
00:13:42]} {[%emt 00:00:19]} 10. e3 {[%clk 00:14:34]} {[%emt 00:00:05]} cxd4
{[%clk 00:13:27]} {[%emt 00:00:20]} 11. exd4 {[%clk 00:14:37]} {[%emt
00:00:02]} d5 {[%clk 00:13:21]} {[%emt 00:00:11]} 12. Ne5 {[%clk 00:14:33]}
{[%emt 00:00:09]} Qc7 {[%clk 00:12:35]} {[%emt 00:00:51]} 13. Nb5 {[%clk
00:14:36]} {[%emt 00:00:01]} Qe7 {[%clk 00:12:19]} {[%emt 00:00:21]} 14. b3
{[%clk 00:14:21]} {[%emt 00:00:21]} Rfc8 {[%clk 00:10:53]} {[%emt 00:01:31]} 15.
Bb2 {[%clk 00:14:16]} {[%emt 00:00:09]} dxc4 {[%clk 00:10:43]} {[%emt
00:00:15]} 16. Bxb7 {[%clk 00:14:19]} {[%emt 00:00:02]} cxb3 {[%clk 00:10:27]}
{[%emt 00:00:20]} 17. Qxc8+ {[%clk 00:14:21]} {[%emt 00:00:03]} Rxc8 {[%clk
00:10:29]} {[%emt 00:00:04]} 18. Bxc8 {[%clk 00:14:25]} Nc7 {[%clk 00:10:23]}
{[%emt 00:00:11]} 19. Nxa7 {[%clk 00:14:05]} Ncd5 {[%clk 00:09:32]} {[%emt
00:01:20]} 20. Nac6 {[%clk 00:14:04]} {[%emt 00:00:05]} Qc7 {[%clk 00:09:07]}
{[%emt 00:00:31]} 21. Ba6 {[%clk 00:13:54]} {[%emt 00:00:15]} Ne4 {[%clk
00:08:18]} {[%emt 00:00:55]} 22. Rac1 {[%clk 00:13:34]} {[%emt 00:00:24]} Bxe5
{[%clk 00:07:37]} {[%emt 00:00:46]} 23. Nxe5 {[%clk 00:13:31]} {[%emt
00:00:09]} Qa7 {[%clk 00:07:24]} {[%emt 00:00:18]} 24. Bd3 {[%clk 00:13:13]}
{[%emt 00:00:22]} Nd6 {[%clk 00:06:28]} {[%emt 00:01:02]} 25. Nc6 {[%clk
00:12:51]} {[%emt 00:00:26]} Qa4 {[%clk 00:05:28]} {[%emt 00:01:06]} 26. h4
{[%clk 00:12:43]} {[%emt 00:00:12]} Nb5 {[%clk 00:04:52]} {[%emt 00:00:41]} 27.
Rc4 {[%clk 00:12:14]} {[%emt 00:00:33]} Qa6 {[%clk 00:04:56]} {[%emt 00:00:02]}
28. a4 {[%clk 00:12:18]} {[%emt 00:00:02]} Nd6 {[%clk 00:04:46]} {[%emt
00:00:15]} 29. Rc3 {[%clk 00:12:16]} {[%emt 00:00:07]} Qa8 {[%clk 00:03:52]}
{[%emt 00:00:59]} 30. Ne5 {[%clk 00:10:57]} {[%emt 00:01:21]} Nxc3 {[%clk
00:03:48]} {[%emt 00:00:11]} 31. Bxc3 {[%clk 00:11:00]} {[%emt 00:00:03]} Ne4
{[%clk 00:03:14]} {[%emt 00:00:39]} 32. Be1 {[%clk 00:09:57]} {[%emt 00:01:07]}
Qd5 {[%clk 00:02:57]} {[%emt 00:00:22]} 33. Nf3 {[%clk 00:08:57]} {[%emt
00:01:05]} b2 {[%clk 00:02:13]} {[%emt 00:00:50]} 34. Bb4 {[%clk 00:08:24]}
{[%emt 00:00:38]} Nxg3 {[%clk 00:01:22]} {[%emt 00:00:55]} 35. fxg3 {[%clk
00:08:24]} {[%emt 00:00:06]} Qb3 {[%clk 00:01:25]} 36. Bb1 {[%clk 00:07:41]}
{[%emt 00:00:48]} Qxb4 {[%clk 00:01:28]} {[%emt 00:00:03]} 37. Rf2 {[%clk
00:07:11]} {[%emt 00:00:32]} Kf8 {[%clk 00:00:56]} {[%emt 00:00:40]} 38. Kg2
{[%clk 00:07:12]} {[%emt 00:00:04]} Ke7 {[%clk 00:00:59]} {[%emt 00:00:02]} 39.
Rc2 {[%clk 00:06:38]} {[%emt 00:00:38]} h6 {[%clk 00:00:33]} {[%emt 00:00:32]}
40. g4 {[%clk 00:06:35]} {[%emt 00:00:08]} Kf6 {[%clk 00:00:29]} {[%emt
00:00:09]} 41. Rf2 {[%clk 00:06:37]} {[%emt 00:00:03]} Ke7 {[%clk 00:00:33]}
{[%emt 00:00:01]} 42. Kg3 {[%clk 00:06:37]} {[%emt 00:00:04]} Qc3 {[%clk
00:00:29]} {[%emt 00:00:09]} 43. Rc2 {[%clk 00:06:26]} {[%emt 00:00:16]} Qb4
{[%clk 00:00:31]} {[%emt 00:00:04]} 44. Rc7+ {[%clk 00:06:25]} {[%emt
00:00:05]} Kf6 {[%clk 00:00:34]} {[%emt 00:00:03]} 45. Rc2 {[%clk 00:06:01]}
{[%emt 00:00:27]} h5 {[%clk 00:00:26]} {[%emt 00:00:15]} 46. g5+ {[%clk
00:06:00]} {[%emt 00:00:06]} Ke7 {[%clk 00:00:25]} {[%emt 00:00:05]} 47. Rc7+
{[%clk 00:05:54]} {[%emt 00:00:11]} Kf8 {[%clk 00:00:29]} {[%emt 00:00:02]} 48.
Rc2 {[%clk 00:05:48]} {[%emt 00:00:11]} Ke7 {[%clk 00:00:33]} {[%emt 00:00:02]}
49. Kg2 {[%clk 00:05:35]} {[%emt 00:00:17]} Kd6 {[%clk 00:00:20]} {[%emt
00:00:18]} 50. Re2 {[%clk 00:05:20]} {[%emt 00:00:19]} Qc3 {[%clk 00:00:21]}
{[%emt 00:00:11]} 51. Kf2 {[%clk 00:05:05]} {[%emt 00:00:24]} Qc1 {[%clk
00:00:17]} {[%emt 00:00:09]} 52. Re1 {[%clk 00:05:08]} {[%emt 00:00:02]} Qc3
{[%clk 00:00:15]} {[%emt 00:00:07]} 53. Rd1 {[%clk 00:04:46]} {[%emt 00:00:27]}
Kd5 {[%clk 00:00:14]} {[%emt 00:00:06]} 54. Ke2 {[%clk 00:04:48]} {[%emt
00:00:03]} Kc4 {[%clk 00:00:09]} {[%emt 00:00:09]} 55. Ne5+ {[%clk 00:04:38]}
{[%emt 00:00:16]} Kb4 {[%clk 00:00:10]} {[%emt 00:00:03]} 56. Nd3+ {[%clk
00:04:02]} {[%emt 00:00:41]} Kxa4 {[%clk 00:00:13]} {[%emt 00:00:03]} 57. Rd2
{[%clk 00:04:06]} Ka5 {[%clk 00:00:10]} {[%emt 00:00:08]} 58. Nxb2 {[%clk
00:04:04]} {[%emt 00:00:06]} Qg3 {[%emt 00:00:07]} 59. Nc4+ {[%clk 00:04:01]}
{[%emt 00:00:06]} Ka6 {[%clk 00:00:14]} {[%emt 00:00:02]} 60. Ra2+ {[%clk
00:04:00]} {[%emt 00:00:05]} Kb7 {[%clk 00:00:16]} {[%emt 00:00:03]} 61. Be4+
{[%clk 00:04:01]} {[%emt 00:00:04]} Kc7 {[%clk 00:00:17]} {[%emt 00:00:03]} 62.
Ra7+ {[%clk 00:03:58]} {[%emt 00:00:09]} Kd8 {[%clk 00:00:18]} {[%emt
00:00:05]} 63. Ne5 {[%clk 00:03:35]} {[%emt 00:00:28]} Qxh4 {[%clk 00:00:08]}
{[%emt 00:00:15]} 64. Nxf7+ {[%clk 00:03:37]} {[%emt 00:00:02]} Ke8 {[%clk
00:00:10]} {[%emt 00:00:03]} 65. Bxg6 {[%clk 00:03:27]} {[%emt 00:00:16]} Qh2+
{[%clk 00:00:07]} {[%emt 00:00:07]} 66. Kd3 {[%clk 00:03:27]} {[%emt 00:00:05]}
Qg3+ {[%clk 00:00:10]} {[%emt 00:00:03]} 67. Kc4 {[%clk 00:03:25]} {[%emt
00:00:06]} Kf8 {[%clk 00:00:09]} {[%emt 00:00:07]} 68. Ne5 {[%clk 00:03:18]}
{[%emt 00:00:11]} 1-0